[Event "Live Chess"]
[Site "Chess.com"]
[Date "2023.05.20"]
[Round "-"]
[White "Delacorta"]
[Black "Ocelot32"]
[Result "1-0"]
[WhiteElo "1450"]
[BlackElo "1374"]
[TimeControl "300"]
[EndTime "12:41:54 PDT"]
[Termination "Delacorta won by resignation"]

1. d4 {[%clk 0:04:58.4]} 1... Nf6 {[%clk 0:04:55.2]} 2. Nf3 {[%clk 0:04:56.9]}
2... d5 {[%clk 0:04:53.4]} 3. e3 {[%clk 0:04:55.5]} 3... Bf5 {[%clk 0:04:45.1]}
4. Bd3 {[%clk 0:04:54]} 4... Bxd3 {[%clk 0:04:43.6]} 5. cxd3 {[%clk 0:04:53.9]}
5... e6 {[%clk 0:04:42.4]} 6. b3 {[%clk 0:04:52.4]} 6... Bb4+ {[%clk 0:04:39.9]}
7. Nbd2 {[%clk 0:04:51]} 7... O-O {[%clk 0:04:36.4]} 8. O-O {[%clk 0:04:47.2]}
8... Nbd7 {[%clk 0:04:35.5]} 9. Bb2 {[%clk 0:04:45.2]} 9... Bd6 {[%clk 0:04:32]}
10. Ne5 {[%clk 0:04:42.9]} 10... c6 {[%clk 0:04:29.4]} 11. f4 {[%clk 0:04:37.5]}
11... Ne8 {[%clk 0:04:22.9]} 12. Qh5 {[%clk 0:04:17.7]} 12... f6 {[%clk
0:04:19.2]} 13. Nxd7 {[%clk 0:03:56.1]} 13... Qxd7 {[%clk 0:04:16.4]} 14. Rf3
{[%clk 0:03:43.9]} 14... Qf7 {[%clk 0:04:14.5]} 15. Rh3 {[%clk 0:03:39.9]} 15...
Qxh5 {[%clk 0:04:12.8]} 16. Rxh5 {[%clk 0:03:39]} 16... f5 {[%clk 0:04:09]} 17.
Nf3 {[%clk 0:03:15]} 17... Nf6 {[%clk 0:04:06.1]} 18. Rh4 {[%clk 0:03:13.1]}
18... Ng4 {[%clk 0:04:03.7]} 19. Ne5 {[%clk 0:03:06.6]} 19... Bxe5 {[%clk
0:03:57.7]} 20. dxe5 {[%clk 0:02:56.2]} 20... Nxe3 {[%clk 0:03:56.2]} 21. Rc1
{[%clk 0:02:32.6]} 21... Ng4 {[%clk 0:03:47.2]} 22. Ba3 {[%clk 0:02:21.6]} 22...
Rfe8 {[%clk 0:03:34]} 23. Rh3 {[%clk 0:02:19.8]} 23... Rac8 {[%clk 0:03:29.6]}
24. d4 {[%clk 0:02:16.6]} 24... b6 {[%clk 0:03:27.2]} 25. Rhc3 {[%clk
0:02:11.7]} 25... c5 {[%clk 0:03:16.8]} 26. dxc5 {[%clk 0:02:07.1]} 26... bxc5
{[%clk 0:03:16]} 27. Rxc5 {[%clk 0:02:03.1]} 27... Rc7 {[%clk 0:03:01.4]} 1-0

[Event "Live Chess"]
[Site "Chess.com"]
[Date "2023.05.20"]
[Round "-"]
[White "JohanKjeldahl"]
[Black "OleksiyJr1"]
[Result "1-0"]
[WhiteElo "1796"]
[BlackElo "942"]
[TimeControl "300"]
[EndTime "12:41:54 PDT"]
[Termination "JohanKjeldahl won by resignation"]

1. e4 {[%clk 0:04:56.5]} 1... c5 {[%clk 0:04:57.2]} 2. Nf3 {[%clk 0:04:55]} 2...
d6 {[%clk 0:04:56.7]} 3. d4 {[%clk 0:04:53.5]} 3... e5 {[%clk 0:04:56.3]} 4.
dxe5 {[%clk 0:04:50.4]} 4... dxe5 {[%clk 0:04:53.3]} 5. Qxd8+ {[%clk 0:04:47.6]}
5... Kxd8 {[%clk 0:04:53.2]} 6. Nxe5 {[%clk 0:04:46.5]} 6... Nf6 {[%clk
0:04:53.1]} 7. Nxf7+ {[%clk 0:04:44.8]} 7... Ke8 {[%clk 0:04:52]} 8. Nxh8 {[%clk
0:04:43.7]} 8... Bd6 {[%clk 0:04:51.9]} 9. Bc4 {[%clk 0:04:36]} 9... Be6 {[%clk
0:04:51.8]} 10. Bxe6 {[%clk 0:04:34.1]} 10... Kf8 {[%clk 0:04:51.3]} 11. Nf7
{[%clk 0:04:32]} 1-0

[Event "Live Chess"]
[Site "Chess.com"]
[Date "2023.05.20"]
[Round "-"]
[White "Hacker_2009"]
[Black "1600x"]
[Result "1/2-1/2"]
[WhiteElo "1903"]
[BlackElo "1750"]
[TimeControl "300"]
[EndTime "12:42:02 PDT"]
[Termination "Game drawn by agreement"]

1. d4 {[%clk 0:04:58]} 1... Nf6 {[%clk 0:04:31.9]} 2. Nf3 {[%clk 0:04:55.5]}
2... d5 {[%clk 0:04:30.4]} 3. e3 {[%clk 0:04:54.2]} 3... Ne4 {[%clk 0:04:29.1]}
4. c4 {[%clk 0:04:53.4]} 4... e6 {[%clk 0:04:27.7]} 5. cxd5 {[%clk 0:04:52.3]}
5... exd5 {[%clk 0:04:26.8]} 6. Nc3 {[%clk 0:04:51.4]} 6... c6 {[%clk
0:04:25.7]} 7. Bd3 {[%clk 0:04:48.4]} 7... Na6 {[%clk 0:04:24.2]} 8. Nxe4 {[%clk
0:04:46.8]} 8... dxe4 {[%clk 0:04:11.1]} 9. Bxe4 {[%clk 0:04:44.6]} 9... Bb4+
{[%clk 0:04:09.1]} 10. Bd2 {[%clk 0:04:42.5]} 10... O-O {[%clk 0:04:07.3]} 11.
Bxb4 {[%clk 0:04:39.2]} 11... Nxb4 {[%clk 0:04:05.6]} 12. a3 {[%clk 0:04:38.7]}
12... Nd5 {[%clk 0:04:04.4]} 13. Bxd5 {[%clk 0:04:37.2]} 13... Qxd5 {[%clk
0:04:02.8]} 14. O-O {[%clk 0:04:35.1]} 14... Bg4 {[%clk 0:03:57.1]} 15. Qe2
{[%clk 0:04:31.2]} 15... Bxf3 {[%clk 0:03:54.2]} 16. Qxf3 {[%clk 0:04:30.5]}
16... Qxf3 {[%clk 0:03:52.3]} 17. gxf3 {[%clk 0:04:30.4]} 17... f6 {[%clk
0:03:50.8]} 18. Rfe1 {[%clk 0:04:28.9]} 18... g5 {[%clk 0:03:50.7]} 19. e4
{[%clk 0:04:26.9]} 19... Kh8 {[%clk 0:03:50.6]} 20. Rad1 {[%clk 0:04:24.1]}
20... Rae8 {[%clk 0:03:50.5]} 21. d5 {[%clk 0:04:22.4]} 21... cxd5 {[%clk
0:03:48.7]} 22. Rxd5 {[%clk 0:04:20.8]} 22... Rd8 {[%clk 0:03:48]} 23. Red1
{[%clk 0:04:19]} 23... Rxd5 {[%clk 0:03:46.1]} 24. Rxd5 {[%clk 0:04:18.9]} 24...
Rf7 {[%clk 0:03:44.9]} 25. Kg2 {[%clk 0:04:15.7]} 25... Kg8 {[%clk 0:03:43.5]}
26. Kg3 {[%clk 0:04:15.1]} 26... Rc7 {[%clk 0:03:42.2]} 27. Kg4 {[%clk
0:04:12.6]} 27... b6 {[%clk 0:03:40.7]} 28. Kf5 {[%clk 0:04:11.2]} 28... Kf7
{[%clk 0:03:39.6]} 29. b4 {[%clk 0:04:00.8]} 29... Ke7 {[%clk 0:03:37.8]} 30. f4
{[%clk 0:03:47.3]} 30... gxf4 {[%clk 0:03:32.2]} 31. Kxf4 {[%clk 0:03:47.2]}
31... Rc2 {[%clk 0:03:30.4]} 32. Kg3 {[%clk 0:03:30.8]} 32... Rc3+ {[%clk
0:03:21.7]} 33. f3 {[%clk 0:03:30.1]} 33... Rxa3 {[%clk 0:03:20]} 34. Rh5 {[%clk
0:03:29.8]} 34... a5 {[%clk 0:03:17.4]} 35. bxa5 {[%clk 0:03:27.9]} 35... bxa5
{[%clk 0:03:15.9]} 36. Rxh7+ {[%clk 0:03:27.4]} 36... Ke6 {[%clk 0:03:14.1]} 37.
Ra7 {[%clk 0:03:26.3]} 37... Ke5 {[%clk 0:03:12.3]} 38. h4 {[%clk 0:03:23.4]}
38... f5 {[%clk 0:03:10.9]} 1/2-1/2

[Event "Live Chess"]
[Site "Chess.com"]
[Date "2023.05.20"]
[Round "-"]
[White "OceanFloater"]
[Black "MrBlond89"]
[Result "0-1"]
[WhiteElo "981"]
[BlackElo "1315"]
[TimeControl "300"]
[EndTime "12:42:02 PDT"]
[Termination "MrBlond89 won by resignation"]

1. e4 {[%clk 0:04:56.3]} 1... e5 {[%clk 0:04:59.2]} 2. Nf3 {[%clk 0:04:55.9]}
2... Nc6 {[%clk 0:04:58.2]} 3. Bb5 {[%clk 0:04:55.2]} 3... f5 {[%clk 0:04:57.2]}
4. Bxc6 {[%clk 0:04:54.2]} 4... bxc6 {[%clk 0:04:56]} 5. Nxe5 {[%clk 0:04:53.9]}
5... Nf6 {[%clk 0:04:53.9]} 6. exf5 {[%clk 0:04:52.6]} 6... Bd6 {[%clk
0:04:48.4]} 7. Nf3 {[%clk 0:04:47.9]} 7... O-O {[%clk 0:04:45.5]} 8. O-O {[%clk
0:04:46.5]} 8... Ng4 {[%clk 0:04:39.1]} 9. h3 {[%clk 0:04:44.1]} 9... Ne5 {[%clk
0:04:34]} 10. d4 {[%clk 0:04:42.4]} 10... Nxf3+ {[%clk 0:04:30]} 11. Qxf3 {[%clk
0:04:41.1]} 11... Bb7 {[%clk 0:04:21.3]} 12. Nc3 {[%clk 0:04:36.3]} 12... Qh4
{[%clk 0:04:03.6]} 13. Bd2 {[%clk 0:04:14.2]} 13... Qxd4 {[%clk 0:04:01]} 14.
Rad1 {[%clk 0:04:07.7]} 14... Rf7 {[%clk 0:03:56.4]} 15. f6 {[%clk 0:03:59.5]}
15... Qxf6 {[%clk 0:03:54.3]} 16. Rfe1 {[%clk 0:03:56.8]} 16... Qxf3 {[%clk
0:03:48.9]} 17. gxf3 {[%clk 0:03:54.8]} 17... Rxf3 {[%clk 0:03:47.9]} 18. Kg2
{[%clk 0:03:53]} 18... Raf8 {[%clk 0:03:41.5]} 19. Ne4 {[%clk 0:03:47.4]} 19...
c5 {[%clk 0:03:32.9]} 20. Nxd6 {[%clk 0:03:45.8]} 20... Rxf2+ {[%clk 0:03:29.9]}
21. Kg1 {[%clk 0:03:44.6]} 21... Rg2+ {[%clk 0:03:24.2]} 22. Kh1 {[%clk
0:03:43.4]} 22... cxd6 {[%clk 0:03:18.6]} 23. Rg1 {[%clk 0:03:34.5]} 23... Rxd2+
{[%clk 0:03:16.9]} 24. Rg2 {[%clk 0:03:31.3]} 24... Rxd1+ {[%clk 0:03:14.2]} 25.
Kh2 {[%clk 0:03:29.2]} 25... Bxg2 {[%clk 0:03:10]} 26. Kxg2 {[%clk 0:03:28.1]}
26... Rd2+ {[%clk 0:03:06.8]} 27. Kg3 {[%clk 0:03:26.3]} 27... Rxc2 {[%clk
0:03:05.9]} 0-1

[Event "Live Chess"]
[Site "Chess.com"]
[Date "2023.05.20"]
[Round "-"]
[White "booktrunk"]
[Black "defenderalist"]
[Result "0-1"]
[WhiteElo "1301"]
[BlackElo "1592"]
[TimeControl "300"]
[EndTime "12:42:04 PDT"]
[Termination "defenderalist won by checkmate"]

1. d4 {[%clk 0:04:59.1]} 1... e6 {[%clk 0:04:59]} 2. c3 {[%clk 0:04:57.3]} 2...
Nf6 {[%clk 0:04:56]} 3. Bf4 {[%clk 0:04:53.1]} 3... d5 {[%clk 0:04:54.9]} 4. e3
{[%clk 0:04:52.3]} 4... c5 {[%clk 0:04:54.3]} 5. Bb5+ {[%clk 0:04:48.6]} 5...
Bd7 {[%clk 0:04:52.5]} 6. Bxd7+ {[%clk 0:04:47.3]} 6... Nbxd7 {[%clk 0:04:50.8]}
7. dxc5 {[%clk 0:04:43.8]} 7... Bxc5 {[%clk 0:04:49.8]} 8. Qa4 {[%clk
0:04:41.4]} 8... O-O {[%clk 0:04:48.3]} 9. Ne2 {[%clk 0:04:38.9]} 9... a6 {[%clk
0:04:47]} 10. Nd4 {[%clk 0:04:36.1]} 10... e5 {[%clk 0:04:38.6]} 11. Bxe5 {[%clk
0:04:30.1]} 11... Nxe5 {[%clk 0:04:37.6]} 12. Ne2 {[%clk 0:04:28.7]} 12... Nd3+
{[%clk 0:04:35.1]} 13. Kd2 {[%clk 0:04:27.4]} 13... Nxf2 {[%clk 0:04:34]} 14.
Rf1 {[%clk 0:04:24.9]} 14... N6e4+ {[%clk 0:04:32.9]} 15. Kc2 {[%clk 0:04:22.5]}
15... Bxe3 {[%clk 0:04:29.9]} 16. Ng3 {[%clk 0:04:18.8]} 16... Nxg3 {[%clk
0:04:25.9]} 17. hxg3 {[%clk 0:04:17.7]} 17... Ba7 {[%clk 0:04:22.1]} 18. Nd2
{[%clk 0:04:13.8]} 18... b5 {[%clk 0:04:19.6]} 19. Qf4 {[%clk 0:04:06.1]} 19...
Ne4 {[%clk 0:04:16.5]} 20. Nxe4 {[%clk 0:04:02.1]} 20... dxe4 {[%clk 0:04:16.4]}
21. Qxe4 {[%clk 0:04:01.3]} 21... Qg5 {[%clk 0:04:11.3]} 22. Rh1 {[%clk
0:03:58.3]} 22... h6 {[%clk 0:04:08.2]} 23. Raf1 {[%clk 0:03:54]} 23... Rad8
{[%clk 0:04:02.7]} 24. Qb7 {[%clk 0:03:44.5]} 24... Rd2+ {[%clk 0:03:57.9]} 25.
Kb3 {[%clk 0:03:43.1]} 25... Qd5+ {[%clk 0:03:52.5]} 26. Qxd5 {[%clk 0:03:41.4]}
26... Rxd5 {[%clk 0:03:51.6]} 27. c4 {[%clk 0:03:40.8]} 27... bxc4+ {[%clk
0:03:50]} 28. Kxc4 {[%clk 0:03:40.1]} 28... Rc5+ {[%clk 0:03:49.1]} 29. Kb4
{[%clk 0:03:39.1]} 29... Rb8+ {[%clk 0:03:47.5]} 30. Ka3 {[%clk 0:03:37.4]}
30... Ra5# {[%clk 0:03:43.4]} 0-1

[Event "Live Chess"]
[Site "Chess.com"]
[Date "2023.05.20"]
[Round "-"]
[White "LiamClery2020"]
[Black "omisoc"]
[Result "0-1"]
[WhiteElo "2077"]
[BlackElo "2201"]
[TimeControl "300"]
[EndTime "12:42:11 PDT"]
[Termination "omisoc won by resignation"]

1. e4 {[%clk 0:04:59.1]} 1... g6 {[%clk 0:04:56.4]} 2. d4 {[%clk 0:04:56.4]}
2... a6 {[%clk 0:04:55.6]} 3. Nc3 {[%clk 0:04:52.4]} 3... d6 {[%clk 0:04:50.7]}
4. Be3 {[%clk 0:04:51]} 4... b5 {[%clk 0:04:50.3]} 5. a3 {[%clk 0:04:49.3]} 5...
Nd7 {[%clk 0:04:49]} 6. Qd2 {[%clk 0:04:48.7]} 6... Bg7 {[%clk 0:04:48]} 7. Nf3
{[%clk 0:04:47.2]} 7... Bb7 {[%clk 0:04:46.9]} 8. Bd3 {[%clk 0:04:45.6]} 8... c5
{[%clk 0:04:45.5]} 9. dxc5 {[%clk 0:04:44]} 9... Nxc5 {[%clk 0:04:43.2]} 10.
Bxc5 {[%clk 0:04:42.2]} 10... dxc5 {[%clk 0:04:41.4]} 11. Nd5 {[%clk 0:04:40.7]}
11... e6 {[%clk 0:04:35.2]} 12. Nc3 {[%clk 0:04:36.7]} 12... c4 {[%clk
0:04:33.3]} 13. Be2 {[%clk 0:04:35.4]} 13... Qxd2+ {[%clk 0:04:31]} 14. Nxd2
{[%clk 0:04:34.5]} 14... Ne7 {[%clk 0:04:15.2]} 15. f3 {[%clk 0:04:33]} 15...
Bxc3 {[%clk 0:03:58.4]} 16. bxc3 {[%clk 0:04:31.4]} 16... f5 {[%clk 0:03:58]}
17. a4 {[%clk 0:04:29.6]} 17... Kd7 {[%clk 0:03:54.2]} 18. O-O {[%clk
0:04:26.1]} 18... Nc8 {[%clk 0:03:40.1]} 19. Rfd1 {[%clk 0:04:23.5]} 19... Kc7
{[%clk 0:03:37.4]} 20. axb5 {[%clk 0:04:18.9]} 20... axb5 {[%clk 0:03:35.6]} 21.
Rxa8 {[%clk 0:04:17.7]} 21... Bxa8 {[%clk 0:03:35.1]} 22. Rb1 {[%clk 0:04:13.5]}
22... Bc6 {[%clk 0:03:32.6]} 23. Kf2 {[%clk 0:04:07.8]} 23... Nb6 {[%clk
0:03:30.9]} 24. exf5 {[%clk 0:04:00.3]} 24... exf5 {[%clk 0:03:28.9]} 25. f4
{[%clk 0:04:00.2]} 25... Na4 {[%clk 0:03:26]} 26. Bf3 {[%clk 0:03:54.9]} 26...
Nxc3 {[%clk 0:03:20.7]} 27. Ra1 {[%clk 0:03:53.4]} 27... Rd8 {[%clk 0:03:16.9]}
28. Ra7+ {[%clk 0:03:51.7]} 28... Kb6 {[%clk 0:03:15.3]} 0-1

[Event "Live Chess"]
[Site "Chess.com"]
[Date "2023.05.20"]
[Round "-"]
[White "LaupMiths"]
[Black "JanMur7"]
[Result "0-1"]
[WhiteElo "1808"]
[BlackElo "1963"]
[TimeControl "300"]
[EndTime "12:42:33 PDT"]
[Termination "JanMur7 won on time"]

1. d4 {[%clk 0:04:53.9]} 1... Nf6 {[%clk 0:04:58.6]} 2. Nf3 {[%clk 0:04:52.1]}
2... e6 {[%clk 0:04:57.6]} 3. g3 {[%clk 0:04:50.4]} 3... Be7 {[%clk 0:04:56.3]}
4. Bg2 {[%clk 0:04:49.5]} 4... O-O {[%clk 0:04:54.9]} 5. O-O {[%clk 0:04:49.4]}
5... c5 {[%clk 0:04:52.9]} 6. b3 {[%clk 0:04:48.7]} 6... Nc6 {[%clk 0:04:49.1]}
7. c4 {[%clk 0:04:47.6]} 7... cxd4 {[%clk 0:04:46.8]} 8. Nxd4 {[%clk 0:04:47.5]}
8... a6 {[%clk 0:04:41.1]} 9. Bb2 {[%clk 0:04:45.5]} 9... Rb8 {[%clk 0:04:36.9]}
10. Nd2 {[%clk 0:04:43.5]} 10... d5 {[%clk 0:04:34.4]} 11. Rc1 {[%clk
0:04:39.6]} 11... Nxd4 {[%clk 0:04:30]} 12. Bxd4 {[%clk 0:04:37.4]} 12... dxc4
{[%clk 0:04:29]} 13. Nxc4 {[%clk 0:04:35.3]} 13... b5 {[%clk 0:04:25.4]} 14. Ne5
{[%clk 0:04:31.6]} 14... Bb7 {[%clk 0:04:19.7]} 15. Nc6 {[%clk 0:04:24.8]} 15...
Bxc6 {[%clk 0:04:17.2]} 16. Rxc6 {[%clk 0:04:18.4]} 16... Qa5 {[%clk 0:04:06.8]}
17. Qc2 {[%clk 0:04:10.8]} 17... Rfd8 {[%clk 0:04:03]} 18. Be5 {[%clk
0:04:04.1]} 18... Rb7 {[%clk 0:03:54.2]} 19. Rd1 {[%clk 0:03:54.2]} 19... Rxd1+
{[%clk 0:03:42.3]} 20. Qxd1 {[%clk 0:03:54.1]} 20... Rd7 {[%clk 0:03:41.1]} 21.
Rc8+ {[%clk 0:03:38.5]} 21... Rd8 {[%clk 0:03:36]} 22. Qc2 {[%clk 0:03:10.5]}
22... h6 {[%clk 0:02:56.5]} 23. Bf3 {[%clk 0:03:06.3]} 23... Nd7 {[%clk
0:01:57.1]} 24. Rxd8+ {[%clk 0:02:19.1]} 24... Qxd8 {[%clk 0:01:53.6]} 25. Bd4
{[%clk 0:02:11.4]} 25... e5 {[%clk 0:01:45.7]} 26. Be3 {[%clk 0:02:10]} 26...
Nf6 {[%clk 0:01:38.8]} 27. Qf5 {[%clk 0:01:49.8]} 27... Qd1+ {[%clk 0:01:07.8]}
28. Kg2 {[%clk 0:01:47.2]} 28... Qd6 {[%clk 0:01:07.7]} 29. Qc8+ {[%clk
0:01:42.3]} 29... Kh7 {[%clk 0:01:05.9]} 30. Qc2+ {[%clk 0:01:41]} 30... g6
{[%clk 0:01:04]} 31. Qc6 {[%clk 0:01:21.8]} 31... Qxc6 {[%clk 0:00:47.6]} 32.
Bxc6 {[%clk 0:01:21.7]} 32... b4 {[%clk 0:00:42.8]} 33. Bb6 {[%clk 0:01:16.1]}
33... h5 {[%clk 0:00:32.4]} 34. Ba5 {[%clk 0:01:14.9]} 34... e4 {[%clk
0:00:28.4]} 35. Bb7 {[%clk 0:01:13.2]} 35... e3 {[%clk 0:00:26.5]} 36. f3 {[%clk
0:01:10.9]} 36... Bc5 {[%clk 0:00:24.2]} 37. Bxa6 {[%clk 0:01:09.6]} 37... Nd7
{[%clk 0:00:22.4]} 38. Bc7 {[%clk 0:01:00.6]} 38... Nf6 {[%clk 0:00:19.8]} 39.
Bc4 {[%clk 0:00:58]} 39... Ne8 {[%clk 0:00:18.5]} 40. Bf4 {[%clk 0:00:53.3]}
40... Nd6 {[%clk 0:00:18.4]} 41. Bxd6 {[%clk 0:00:51.7]} 41... Bxd6 {[%clk
0:00:18.3]} 42. f4 {[%clk 0:00:50.3]} 42... Bc5 {[%clk 0:00:18.2]} 43. Kf3
{[%clk 0:00:49.7]} 43... Kg7 {[%clk 0:00:17.6]} 44. Ke4 {[%clk 0:00:49.2]} 44...
f5+ {[%clk 0:00:17.1]} 45. Kd5 {[%clk 0:00:47.9]} 45... Bb6 {[%clk 0:00:16.5]}
46. Kc6 {[%clk 0:00:46]} 46... Bd4 {[%clk 0:00:15.7]} 47. Kb5 {[%clk 0:00:45]}
47... Bc3 {[%clk 0:00:15.6]} 48. Bd3 {[%clk 0:00:39.7]} 48... Bd2 {[%clk
0:00:15.5]} 49. Kc5 {[%clk 0:00:32]} 49... Kf6 {[%clk 0:00:15.4]} 50. Kd5 {[%clk
0:00:31]} 50... Kg7 {[%clk 0:00:15.3]} 51. Ke6 {[%clk 0:00:29.9]} 51... Bc3
{[%clk 0:00:11.7]} 52. h3 {[%clk 0:00:28.5]} 52... Bd2 {[%clk 0:00:11.6]} 53. g4
{[%clk 0:00:24.7]} 53... hxg4 {[%clk 0:00:10.7]} 54. hxg4 {[%clk 0:00:24.6]}
54... fxg4 {[%clk 0:00:10.6]} 55. Be4 {[%clk 0:00:22.8]} 55... g3 {[%clk
0:00:10.3]} 56. Bg2 {[%clk 0:00:21.3]} 56... Bc3 {[%clk 0:00:09.5]} 57. Bf3
{[%clk 0:00:19.9]} 57... Bf6 {[%clk 0:00:09.4]} 58. Kd5 {[%clk 0:00:17.9]} 58...
Bd8 {[%clk 0:00:09]} 59. Kc4 {[%clk 0:00:17.2]} 59... Be7 {[%clk 0:00:08.3]} 60.
Kb5 {[%clk 0:00:16]} 60... Bd6 {[%clk 0:00:07.7]} 61. Kc6 {[%clk 0:00:14.5]}
61... Bxf4 {[%clk 0:00:07.2]} 62. Kb5 {[%clk 0:00:14.1]} 62... Bg5 {[%clk
0:00:07.1]} 63. Kc4 {[%clk 0:00:13.1]} 63... Be7 {[%clk 0:00:07]} 64. Kb5 {[%clk
0:00:12.1]} 64... Kf6 {[%clk 0:00:05.2]} 65. Kc4 {[%clk 0:00:10.1]} 65... Ke5
{[%clk 0:00:05.1]} 66. Kd3 {[%clk 0:00:08.5]} 66... Kf4 {[%clk 0:00:05]} 67. Kd4
{[%clk 0:00:06.7]} 67... g5 {[%clk 0:00:04.9]} 68. Kd3 {[%clk 0:00:03.8]} 68...
g4 {[%clk 0:00:04.8]} 69. Bg2 {[%clk 0:00:02.8]} 69... Bf8 {[%clk 0:00:04.7]}
70. Kd4 {[%clk 0:00:01.5]} 70... Bg7+ {[%clk 0:00:04.6]} 71. Kc4 {[%clk
0:00:00.6]} 71... Bh6 {[%clk 0:00:04.5]} 72. Kc5 {[%clk 0:00:00.4]} 72... Bg5
{[%clk 0:00:04.4]} 73. Kb5 {[%clk 0:00:00.3]} 73... Bf6 {[%clk 0:00:04.3]} 74.
Kxb4 {[%clk 0:00:00.2]} 74... Bg7 {[%clk 0:00:04.2]} 0-1

[Event "Live Chess"]
[Site "Chess.com"]
[Date "2023.05.20"]
[Round "-"]
[White "KuriyamaMiraiUA"]
[Black "blunderabit"]
[Result "0-1"]
[WhiteElo "689"]
[BlackElo "1889"]
[TimeControl "300"]
[EndTime "12:42:35 PDT"]
[Termination "blunderabit won by checkmate"]

1. d4 {[%clk 0:04:58.9]} 1... Nf6 {[%clk 0:04:56.1]} 2. c4 {[%clk 0:04:57.6]}
2... e6 {[%clk 0:04:54.2]} 3. Nc3 {[%clk 0:04:56.5]} 3... Bb4 {[%clk 0:04:51.9]}
4. e3 {[%clk 0:04:51.4]} 4... O-O {[%clk 0:04:48.9]} 5. Bd3 {[%clk 0:04:48.2]}
5... d5 {[%clk 0:04:44.1]} 6. c5 {[%clk 0:04:43.4]} 6... c6 {[%clk 0:04:39.7]}
7. Ne2 {[%clk 0:04:34.3]} 7... e5 {[%clk 0:04:32.5]} 8. dxe5 {[%clk 0:04:27.7]}
8... Nfd7 {[%clk 0:04:30.4]} 9. O-O {[%clk 0:04:16.5]} 9... Nxe5 {[%clk
0:04:26.9]} 10. Bd2 {[%clk 0:03:54]} 10... Nxd3 {[%clk 0:04:11.2]} 11. Qc2
{[%clk 0:03:36.3]} 11... Bf5 {[%clk 0:04:01.9]} 12. Nd4 {[%clk 0:03:26.2]} 12...
Bg6 {[%clk 0:03:55.3]} 13. a3 {[%clk 0:03:22.5]} 13... Bxc5 {[%clk 0:03:48.6]}
14. b4 {[%clk 0:03:15.1]} 14... Bd6 {[%clk 0:03:46.4]} 15. f3 {[%clk 0:02:37]}
15... Qh4 {[%clk 0:03:25]} 16. g3 {[%clk 0:02:25.9]} 16... Bxg3 {[%clk 0:03:20]}
17. hxg3 {[%clk 0:02:22.4]} 17... Qxg3+ {[%clk 0:03:18.2]} 18. Kh1 {[%clk
0:02:20.1]} 18... Nf2+ {[%clk 0:03:16.9]} 19. Rxf2 {[%clk 0:02:16.7]} 19... Bxc2
{[%clk 0:03:06.9]} 20. Raf1 {[%clk 0:02:09.9]} 20... Bd3 {[%clk 0:02:58.4]} 21.
Rg2 {[%clk 0:02:03.9]} 21... Qh3+ {[%clk 0:02:52.7]} 22. Rh2 {[%clk 0:01:59.4]}
22... Qxf1# {[%clk 0:02:49.7]} 0-1

[Event "Live Chess"]
[Site "Chess.com"]
[Date "2023.05.20"]
[Round "-"]
[White "Tushinskiy"]
[Black "Long1968"]
[Result "1-0"]
[WhiteElo "2093"]
[BlackElo "774"]
[TimeControl "300"]
[EndTime "12:42:37 PDT"]
[Termination "Tushinskiy won on time"]

1. d4 {[%clk 0:04:57.4]} 1... e6 {[%clk 0:04:57.8]} 2. c3 {[%clk 0:04:57.3]}
2... c5 {[%clk 0:04:54.2]} 3. Nf3 {[%clk 0:04:57.2]} 3... Nc6 {[%clk 0:04:51.3]}
4. Bf4 {[%clk 0:04:50.8]} 4... d5 {[%clk 0:04:48.7]} 5. e3 {[%clk 0:04:37]} 5...
Nf6 {[%clk 0:04:44.8]} 6. Bd3 {[%clk 0:04:32.9]} 6... Qa5 {[%clk 0:04:34.7]} 7.
Nbd2 {[%clk 0:04:31.2]} 7... c4 {[%clk 0:04:29]} 8. Bc2 {[%clk 0:04:29.1]} 8...
Bd7 {[%clk 0:04:20.7]} 9. O-O {[%clk 0:04:26.3]} 9... Be7 {[%clk 0:04:12]} 10.
Ne5 {[%clk 0:04:24.7]} 10... Nxe5 {[%clk 0:04:05.9]} 11. Bxe5 {[%clk 0:04:24.6]}
11... O-O {[%clk 0:04:01.5]} 12. Bxf6 {[%clk 0:04:23]} 12... Bxf6 {[%clk
0:03:59.1]} 13. e4 {[%clk 0:04:22.9]} 13... dxe4 {[%clk 0:03:51.3]} 14. Nxe4
{[%clk 0:04:22.8]} 14... Be7 {[%clk 0:03:34.5]} 15. f4 {[%clk 0:04:20.4]} 15...
Bc6 {[%clk 0:03:29.4]} 16. Ng3 {[%clk 0:04:19.1]} 16... b5 {[%clk 0:03:18.1]}
17. Qe2 {[%clk 0:04:17.2]} 17... Rac8 {[%clk 0:03:09.4]} 18. f5 {[%clk 0:04:13]}
18... exf5 {[%clk 0:02:52.9]} 19. Qxe7 {[%clk 0:04:11.1]} 19... Rce8 {[%clk
0:02:45.7]} 20. Qc5 {[%clk 0:04:05.7]} 20... Rc8 {[%clk 0:02:34.6]} 21. Qxf5
{[%clk 0:04:03]} 21... g6 {[%clk 0:02:27.1]} 22. Qg5 {[%clk 0:03:59.8]} 22...
Rfe8 {[%clk 0:02:17.1]} 23. a3 {[%clk 0:03:59.7]} 23... Qc7 {[%clk 0:01:58.2]}
24. Rf6 {[%clk 0:02:05.1]} 24... Qe7 {[%clk 0:01:23.8]} 25. Raf1 {[%clk
0:02:03]} 25... Rf8 {[%clk 0:00:49.1]} 26. Nf5 {[%clk 0:01:48.8]} 26... Qe2
{[%clk 0:00:33.7]} 27. Nh6+ {[%clk 0:01:46.2]} 27... Kg7 {[%clk 0:00:17.4]} 28.
R6f2 {[%clk 0:01:43.2]} 28... Qh5 {[%clk 0:00:08.5]} 29. Rxf7+ {[%clk
0:01:37.5]} 29... Rxf7 {[%clk 0:00:01.8]} 30. Rxf7+ {[%clk 0:01:37.4]} 1-0

[Event "Live Chess"]
[Site "Chess.com"]
[Date "2023.05.20"]
[Round "-"]
[White "mightysmasher"]
[Black "JoshMcK"]
[Result "1-0"]
[WhiteElo "2106"]
[BlackElo "1565"]
[TimeControl "300"]
[EndTime "12:43:11 PDT"]
[Termination "mightysmasher won by resignation"]

1. e4 {[%clk 0:04:58]} 1... c6 {[%clk 0:04:57.6]} 2. d4 {[%clk 0:04:56.7]} 2...
d5 {[%clk 0:04:57.2]} 3. Nd2 {[%clk 0:04:55]} 3... dxe4 {[%clk 0:04:55.7]} 4.
Nxe4 {[%clk 0:04:54.4]} 4... Nf6 {[%clk 0:04:55.6]} 5. Nxf6+ {[%clk 0:04:53]}
5... exf6 {[%clk 0:04:55.5]} 6. c3 {[%clk 0:04:52.1]} 6... Bd6 {[%clk
0:04:54.8]} 7. Bd3 {[%clk 0:04:50.8]} 7... O-O {[%clk 0:04:54.4]} 8. Ne2 {[%clk
0:04:50.3]} 8... Re8 {[%clk 0:04:53.1]} 9. O-O {[%clk 0:04:49.7]} 9... Bg4
{[%clk 0:04:49.7]} 10. Be3 {[%clk 0:04:48]} 10... Bxe2 {[%clk 0:04:46.2]} 11.
Qxe2 {[%clk 0:04:46.6]} 11... Bf4 {[%clk 0:04:45.8]} 12. Bxh7+ {[%clk
0:04:43.8]} 12... Kh8 {[%clk 0:04:36.8]} 13. Qh5 {[%clk 0:04:39.9]} 13... Bxe3
{[%clk 0:04:35.7]} 14. fxe3 {[%clk 0:04:36.1]} 14... Rxe3 {[%clk 0:04:27.7]} 15.
Bg6+ {[%clk 0:04:33.9]} 15... Kg8 {[%clk 0:04:27.2]} 16. Qh7+ {[%clk 0:04:33]}
16... Kf8 {[%clk 0:04:26.4]} 17. Qh8+ {[%clk 0:04:31.4]} 17... Ke7 {[%clk
0:04:26]} 18. Qxg7 {[%clk 0:04:30.3]} 18... Rxc3 {[%clk 0:04:14.7]} 1-0